[Event "Israeli Team-ch 2023"]
[Site "Petah Tikva"]
[Date "2023.01.20"]
[Round "3.24"]
[White "Polyakov, Alex"]
[Black "Mindlin, Alon"]
[Result "0-1"]
[ECO "D58"]
[WhiteElo "2214"]
[BlackElo "2432"]
[Annotator "TA"]
[PlyCount "106"]
[EventDate "2023.01.13"]
[EventCountry "ISR"]
[SourceTitle "playchess.com"]
[Source "ChessBase"]
[SourceQuality "1"]
[TimeControl "40/5400+30:1800+30"]

{[%evp 22,106,-12,-2,1,0,0,-4,0,-4,0,0,10,-7,-7,-8,0,-11,-3,-18,-18,-54,-36,-72,-18,-17,-34,-135,-102,-149,-152,-148,-57,-172,-170,-195,-187,-187,-187,-187,-190,-188,-187,-229,-216,-235,-235,-255,-243,-249,-231,-288,-293,-291,-284,-274,-277,-389,-333,-329,-289,-531,-519,-456,-385,-440,-430,-487,-360,-349,-350,-493,-492,-470,-473,-503,-500,-5514,-5552,-4125,-3338,-29971,-29975,-29979,-29980,-29977,-29977]} 1. d4 {[%emt 0:00:21]} Nf6 {[%emt 0:00:29]} 2. Nf3 {[%emt 0:00:05]} d5 {[%emt 0:00:55]} 3. c4 {[%emt 0:00:21]} e6 {[%emt 0:00:12]} 4. Nc3 {[%emt 0:00:15]} Be7 {[%emt 0:01:52]} 5. Bg5 {[%emt 0:02:46]} h6 {[%emt 0:00:20]} 6. Bh4 {[%emt 0:00:03]} O-O {[%emt 0:00:08]} 7. e3 {[%emt 0:00:11]} b6 {[%emt 0:01:33]} 8. Be2 {[%emt 0:01:36]} Bb7 {[%emt 0:01:29]} 9. O-O {[%emt 0:00:30]} Nbd7 {[%emt 0:05:43][%cal Bb8d7,Bd7f6,Bf6e4][%mdl 32]} 10. Rc1 {[%emt 0:10:14]} c5 {[%emt 0:03:42]} 11. cxd5 {[%emt 0:31:10]} Nxd5 {[%emt 0:09:34]} 12. Bg3 {[%emt 0:00:51]} N7f6 {[%emt 0:02:22] D58: Queen's Gambit Declined: Tartakower Defence.} 13. Nxd5 {[%emt 0:15:13]} Bxd5 {[%emt 0:05:12] [#]} 14. Ne5 $146 {[%emt 0:00:51]} ({Predecessor:} 14. Qa4 Ne4 15. Rfd1 Nxg3 16. hxg3 Qe8 17. Bb5 Qb8 18. Ne5 a6 19. Bc6 b5 20. Qc2 c4 {1-0 Salimov,R (2094)-Moisseyenko,I (2287) Astana op 2019 (6)}) 14... Ne4 {[%emt 0:13:52] The position is equal.} 15. dxc5 {[%emt 0:06:59]} Bxc5 {[%emt 0:04:38]} 16. Qa4 {[%emt 0:10:38]} Qg5 {[%emt 0:02:52] ...Nxg3 would be deadly.} 17. Nf3 {[%emt 0:05:03]} (17. Bf4 {with more complications.} Nc3 18. Bxg5 Nxa4 19. Bf4) 17... Qe7 {[%emt 0:02:43]} 18. Bc4 {[%emt 0:00:39]} Bb7 {[%emt 0:05:21]} 19. Ba6 {[%emt 0:01:52]} Rfd8 {[%emt 0:07:14]} 20. Bxb7 {[%emt 0:01:27]} Qxb7 {[%emt 0:00:10]} 21. b4 {[%emt 0:02:13]} b5 {[%emt 0:03:16]} 22. Qa5 {[%emt 0:00:32]} Qb6 {[%emt 0:07:00]} (22... Bf8 $17) 23. Bc7 {[%emt 0:02:19]} Qxa5 {[%emt 0:00:05]} 24. bxa5 {[%emt 0:01:40]} (24. Bxa5 $15 Bb6 25. Nd4) 24... Rd5 {[%emt 0:03:12]} 25. Rfd1 {[%emt 0:01:14] [#]} (25. g4 $142) 25... Rxd1+ $1 $17 {[%emt 0:01:35]} 26. Rxd1 {[%emt 0:00:02]} Nc3 {[%emt 0:00:28]} (26... Rc8 $17 27. Rd8+ Rxd8 28. Bxd8 Nc3) 27. Ra1 {[%emt 0:00:29]} (27. Rd7 $15) 27... f6 $19 {[%emt 0:01:26]} 28. Nd4 {[%emt 0:02:40]} Bxd4 {[%emt 0:02:45]} 29. exd4 {[%emt 0:00:02][%mdl 4096] Endgame KRB-KRN} Rc8 {[%emt 0:00:07]} 30. Bd6 {[%emt 0:01:08]} Ne2+ {[%emt 0:00:05]} 31. Kf1 {[%emt 0:00:09]} Nxd4 {[%emt 0:00:02]} 32. Rb1 {[%emt 0:00:40]} Rc4 {[%emt 0:01:46]} 33. a3 {[%emt 0:00:55]} a6 {[%emt 0:00:17]} 34. h3 {[%emt 0:01:26]} Kf7 {[%emt 0:00:11]} 35. Bb4 {[%emt 0:00:54]} e5 {[%emt 0:00:24]} 36. Ke1 {[%emt 0:00:20]} Ke6 {[%emt 0:00:22]} 37. Bf8 {[%emt 0:00:28]} Rc8 {[%emt 0:00:26]} 38. Bb4 {[%emt 0:00:10]} h5 {[%emt 0:00:22]} 39. Rb2 {[%emt 0:00:22]} (39. Rd1 $142) 39... Rc2 {[%emt 0:01:20]} 40. Rb1 {[%emt 0:00:33]} g5 {[%emt 0:01:34]} 41. g4 $2 {[%emt 0:30:41]} (41. Kf1 {might work better.}) 41... hxg4 {[%emt 0:32:10]} 42. hxg4 {[%emt 0:00:02]} Rc4 {[%emt 0:04:51]} 43. Kd2 {[%emt 0:01:14]} Kd5 {[%emt 0:04:03]} 44. Be7 {[%emt 0:00:00]} Nc6 {[%emt 0:00:00]} 45. Bxf6 {[%emt 0:00:00]} Rxg4 {[%emt 0:00:00]} 46. Re1 {[%emt 0:00:00]} (46. Rh1 {was called for.}) 46... Rf4 {[%emt 0:00:00]} ({And not} 46... Nxa5 47. Rxe5+ Kd6 48. Rxg5 Rxg5 49. Bxg5 $15) 47. Bxg5 {[%emt 0:00:00]} Rxf2+ {[%emt 0:00:00]} 48. Kc3 {[%emt 0:00:00]} Rf3+ {[%emt 0:00:00]} 49. Re3 {[%emt 0:00:00]} (49. Kb2 $142 Nxa5 50. Rd1+ Ke6 51. a4) 49... Rxe3+ {[%emt 0:00:00]} 50. Bxe3 {[%emt 0:00:00]} Nxa5 {[%emt 0:00:00]} 51. a4 {[%emt 0:00:00]} bxa4 {[%emt 0:00:00] Black mates.} 52. Kb4 {[%emt 0:00:00] [#]} a3 $1 {[%emt 0:00:00]} 53. Bc1 {[%emt 0:00:00]} (53. Bd2 e4) 53... Nc4 {[%emt 0:00:00] Weighted Error Value: White=0.63/Black=0.15 (very precise)} 0-1

[Event "Israeli Team-ch 2023"]
[Site "Petah Tikva"]
[Date "2023.01.20"]
[Round "3.25"]
[White "Pultinevicius, Paulius"]
[Black "Najer, Evgeniy"]
[Result "0-1"]
[ECO "E11"]
[WhiteElo "2570"]
[BlackElo "2662"]
[Annotator "TA"]
[PlyCount "76"]
[EventDate "2023.01.13"]
[EventCountry "ISR"]
[SourceTitle "playchess.com"]
[Source "ChessBase"]
[SourceQuality "1"]
[TimeControl "40/5400+30:1800+30"]

{[%evp 13,76,0,0,0,11,11,11,-11,-11,0,0,-2,1,0,23,16,35,18,31,25,31,34,27,18,30,27,20,3,55,15,29,33,43,15,12,0,0,0,0,0,0,0,0,-81,-64,-201,0,-267,-281,-1705,-1623,-1492,-1430,-1149,-799,-892,-820,-2034,-1966,-29979,-29979,-29976,-29972,-29994,-29989]} 1. d4 {[%emt 0:11:29]} Nf6 {[%emt 0:00:18]} 2. c4 {[%emt 0:00:35]} e6 {[%emt 0:00:15]} 3. Nf3 {[%emt 0:00:45]} Bb4+ {[%emt 0:00:41]} 4. Nbd2 {[%emt 0:03:14]} d5 {[%emt 0:00:26]} 5. e3 {[%emt 0:01:40]} O-O {[%emt 0:01:12]} 6. a3 {[%emt 0:00:55]} Be7 {[%emt 0:00:09]} 7. b4 {[%emt 0:04:56] is now debated instead of 7.Bd3.} a5 {[%emt 0:05:46]} 8. b5 {[%emt 0:00:58] E11: Bogo-Indian.} c5 {[%emt 0:00:08]} 9. bxc6 {[%emt 0:14:00]} bxc6 {[%emt 0:02:50]} 10. Qc2 {[%emt 0:03:08] [#] The position is equal.} Ba6 $146 {[%emt 0:03:28]} ({Predecessor:} 10... Nbd7 11. c5 a4 12. Bd3 Qa5 13. O-O Ba6 14. Bxa6 Qxa6 15. Bb2 Rab8 16. Bc3 Ne8 {1-0 Karpov,A (2668)-Kogan,A (2566) Calatrava op rapid 2nd 2007 (5)}) 11. Bb2 {[%emt 0:13:31]} Nbd7 {[%emt 0:23:04]} 12. c5 {[%emt 0:01:40]} Bxf1 {[%emt 0:00:47]} 13. Kxf1 {[%emt 0:00:07]} Qc7 {[%emt 0:04:54]} 14. g3 {[%emt 0:08:49]} e5 {[%emt 0:03:11]} 15. dxe5 {[%emt 0:11:39]} Ng4 {[%emt 0:01:56][%cal Rg4e5]} 16. Kg2 {[%emt 0:02:22]} Ngxe5 {[%emt 0:01:12]} 17. Nxe5 {[%emt 0:02:45]} Nxe5 {[%emt 0:00:06]} 18. Bd4 {[%emt 0:00:11]} Nd7 {[%emt 0:10:58][%cal Be5d7,Bd7f6,Bf6e4][%mdl 32]} 19. Rab1 {[%emt 0:00:42]} Rfb8 {[%emt 0:10:41]} 20. Qc3 {[%emt 0:00:10]} Bf6 {[%emt 0:02:16]} (20... Qa7 $11) 21. a4 {[%emt 0:00:07]} Bxd4 {[%emt 0:02:11]} 22. exd4 {[%emt 0:00:52]} h5 {[%emt 0:02:10]} 23. Rhe1 {[%emt 0:02:27]} Nf6 {[%emt 0:01:48]} 24. Rxb8+ {[%emt 0:04:36]} (24. Nf3 {with more complications.} Ne4 25. Qa3 Rb7 26. Rxb7 Qxb7 27. Ne5) 24... Rxb8 {[%emt 0:00:12]} 25. Rb1 {[%emt 0:00:12] Against Rb4} Rxb1 {[%emt 0:10:59]} 26. Nxb1 $11 {[%emt 0:00:04][%mdl 4096] Endgame KQN-KQN} Ne4 {[%emt 0:00:03] Prevents Nd2.} 27. Qb2 {[%emt 0:02:21]} h4 {[%emt 0:01:32]} 28. Qb6 {[%emt 0:02:36]} (28. Nd2 $11) 28... Qc8 $17 {[%emt 0:04:39] White must now prevent ...Ng5.} 29. Qxa5 {[%emt 0:01:30]} (29. f3 $1 $15 Ng5 30. Kf2) 29... h3+ $2 {[%emt 0:01:43]} (29... Ng5 $1 $19 {( -> ...Qh3+)} 30. Nd2 Qh3+ 31. Kh1 hxg3 32. fxg3 Qg4) 30. Kg1 $2 {[%emt 0:01:35][%mdl 8192] [#]} (30. Kf1 $1 $11) 30... Ng5 $1 $19 {[%emt 0:00:07]} 31. Nd2 $2 {[%emt 0:05:25] [#]} (31. Kf1 Nf3 32. Nd2 Nxd4 33. f4) 31... Qg4 $1 {[%emt 0:00:53]} 32. f3 {[%emt 0:00:37]} Qxd4+ {[%emt 0:00:50]} 33. Kf1 {[%emt 0:00:04]} Ne6 {[%emt 0:01:00][%cal Og8h7] aiming for ...Kh7!} 34. f4 {[%emt 0:00:56]} Qd3+ {[%emt 0:02:35]} ({Worse is} 34... Qxc5 35. Qxc5 Nxc5 36. a5 $15) (34... Nxc5 35. Qd8+ Kh7 36. Qh4+ Kg8 37. Qd8+ Kh7 38. Qh4+ Kg8 39. Qd8+ $11) 35. Ke1 {[%emt 0:00:30]} Qe3+ {[%emt 0:01:30]} 36. Kf1 {[%emt 0:00:18]} g6 {[%emt 0:01:01][%cal Bg7g6,Bg6f5][%mdl 32] Black mates.} ({And not} 36... Qxc5 37. Qxc5 Nxc5 38. a5 $15) 37. Qa8+ {[%emt 0:00:43]} Kg7 {[%emt 0:00:14]} 38. f5 {[%emt 0:00:29]} gxf5 {[%emt 0:00:15] Weighted Error Value: White=0.85/Black=0.23 (precise)} 0-1

[Event "Israeli Team-ch 2023"]
[Site "Petah Tikva"]
[Date "2023.01.20"]
[Round "3.26"]
[White "Zanan, Evgeny"]
[Black "Soffer, Ram"]
[Result "1/2-1/2"]
[ECO "B11"]
[WhiteElo "2483"]
[BlackElo "2475"]
[Annotator "TA"]
[PlyCount "101"]
[EventDate "2023.01.13"]
[EventCountry "ISR"]
[SourceTitle "playchess.com"]
[Source "ChessBase"]
[SourceQuality "1"]
[TimeControl "40/5400+30:1800+30"]

{[%evp 10,101,34,18,13,15,19,16,28,17,17,0,0,1,-2,-9,-6,-37,-33,-30,-25,-42,-42,-88,-80,-90,-83,-88,-88,-84,-43,-77,-77,-79,-74,-75,-67,-67,-64,-66,-41,-35,0,0,0,0,10,-25,-35,-19,-5,-39,-48,-67,0,0,0,0,0,-50,-64,-41,0,0,0,0,0,0,0,0,0,0,0,0,0,0,0,0,0,0,0,0,0,0,0,0,0,0,0,0,0,0,0,0]} 1. e4 {[%emt 0:01:59]} c6 {[%emt 0:00:20]} 2. Nf3 {[%emt 0:03:46]} d5 {[%emt 0:04:45]} 3. Nc3 {[%emt 0:00:05]} Bg4 {[%emt 0:00:09]} 4. h3 {[%emt 0:00:06]} Bxf3 {[%emt 0:00:07]} 5. Qxf3 {[%emt 0:00:03]} e6 {[%emt 0:00:22]} 6. Be2 {[%emt 0:00:06]} Bc5 {[%emt 0:00:23] B11: Caro-Kann: Two Knights Variation.} 7. O-O {[%emt 0:00:08]} Nd7 {[%emt 0:00:23]} 8. Qg3 {[%emt 0:01:42]} Bd4 {[%emt 0:00:47]} (8... Ngf6 {with more complications.} 9. d3 O-O 10. Bf4 Ne8) 9. exd5 {[%emt 0:00:27]} exd5 {[%emt 0:00:29] [#]} 10. Bd3 $146 {[%emt 0:08:14]} ({Predecessor:} 10. Re1 Ne7 11. Bg4 Nf6 12. Ne2 Ne4 13. Nxd4 Nxg3 14. fxg3 O-O 15. c3 Re8 16. Rf1 {0-1 Sarana,A (2649)-Tomashevsky,E (2706) Titled Tuesday intern op 02nd Feb blitz 2021 (11)}) 10... Ne7 {[%emt 0:07:47]} 11. b3 {[%emt 0:07:13]} Qb8 {[%emt 0:10:08]} 12. Qg4 {[%emt 0:19:17]} Bf6 {[%emt 0:01:47]} 13. f4 {[%emt 0:01:14]} Nc5 {[%emt 0:10:24]} 14. Ba3 {[%emt 0:00:58]} Nxd3 {[%emt 0:01:21]} 15. Bxe7 {[%emt 0:11:40]} Kxe7 {[%emt 0:01:27][%cal Be8e7,Be7d8,Bd8c7][%mdl 32]} ({Much worse is} 15... Bxe7 16. Qxg7 (16. cxd3 O-O $17) 16... Kd7 17. Qg4+ (17. cxd3 Qf8 $14) 17... Kc7 18. cxd3 $11) 16. cxd3 {[%emt 0:12:59]} (16. Qe2+ $15 Kd7 17. Qxd3) 16... Qd6 $17 {[%emt 0:05:01]} 17. Rae1+ {[%emt 0:00:41]} Kd8 {[%emt 0:00:47]} 18. Kh1 {[%emt 0:02:49]} h5 {[%emt 0:06:27]} 19. Qf3 {[%emt 0:01:28]} h4 {[%emt 0:05:17]} 20. Nd1 {[%emt 0:08:17][%cal Bc3d1,Bd1e3,Be3g4,Bg4e5,Be5f3][%mdl 32]} Kc7 {[%emt 0:02:25]} 21. Ne3 {[%emt 0:00:08]} Rae8 {[%emt 0:01:16]} 22. Ng4 {[%emt 0:03:41]} Bd4 {[%emt 0:03:51]} 23. Ne5 {[%emt 0:04:34]} Re7 {[%emt 0:02:54]} 24. Qg4 {[%emt 0:00:29]} Rhe8 {[%emt 0:02:11]} 25. Qxh4 {[%emt 0:01:32][%cal Oe5f7]} g5 {[%emt 0:00:47]} (25... Qb4 $5 {[%cal Rd4e5]} 26. Nxf7 Bc5 $11) 26. Qg4 {[%emt 0:05:05]} (26. Qxg5 $2 {is the wrong capture.} f6 27. Qh6 fxe5 28. Qxd6+ Kxd6 $19) 26... gxf4 {[%emt 0:00:54]} 27. Nf3 {[%emt 0:00:03] [#] Strongly threatening Rxe7+.} Rxe1 {[%emt 0:00:28]} 28. Rxe1 {[%emt 0:02:52]} Rxe1+ {[%emt 0:00:37]} 29. Nxe1 $11 {[%emt 0:00:04][%mdl 4096] Endgame KQB-KQN} Bf2 {[%emt 0:03:27]} 30. Nf3 {[%emt 0:00:04]} (30. Qe2 $5 {[%cal Re2f2]} Bg3 31. Nf3 $11) 30... Kb6 {[%emt 0:15:17]} 31. Qf5 {[%emt 0:02:46]} f6 {[%emt 0:01:30]} (31... Bg3 $1 $15 32. Qe5 Qxe5 33. Nxe5 Kc5) 32. d4 {[%emt 0:00:48]} Bg3 {[%emt 0:00:40]} 33. Qc2 {[%emt 0:00:52]} Qe6 {[%emt 0:01:20]} 34. Qd1 {[%emt 0:00:37] Prevents Qe2} ({White should try} 34. d3 $11) 34... Qe4 {[%emt 0:01:19]} 35. d3 {[%emt 0:00:34]} Qf5 {[%emt 0:01:06]} 36. Qe2 {[%emt 0:00:12] The position is equal.} a5 {[%emt 0:00:53]} 37. Kg1 {[%emt 0:00:36]} Qh7 {[%emt 0:01:32]} 38. Kf1 {[%emt 0:00:25]} Kc7 {[%emt 0:03:01]} 39. Qd2 {[%emt 0:00:16]} b6 {[%emt 0:01:37]} 40. Ke2 {[%emt 0:00:32]} Kd7 {[%emt 0:01:03]} 41. Kd1 {[%emt 0:01:52]} Qf5 {[%emt 0:01:12]} 42. Qe2 {[%emt 0:05:44]} Qh7 {[%emt 0:02:49]} 43. Nd2 {[%emt 0:03:46]} Qh4 {[%emt 0:03:15]} 44. Nf3 {[%emt 0:01:47]} Qh7 {[%emt 0:00:05]} 45. Kc2 {[%emt 0:00:19]} Qh8 {[%emt 0:01:49]} 46. Kb2 {[%emt 0:01:46]} Qh7 {[%emt 0:00:35]} 47. a3 {[%emt 0:00:34]} Qh8 {[%emt 0:00:26]} 48. Qd2 {[%emt 0:00:57]} Qe8 {[%emt 0:01:15]} 49. Kc2 {[%emt 0:11:12]} Qe7 {[%emt 0:00:50]} 50. Kb2 {[%emt 0:01:40]} Qe8 {[%emt 0:00:23]} 51. Kc2 {[%emt 0:02:59] Weighted Error Value: White=0.08 (flawless) /Black=0.06 (flawless)} 1/2-1/2

[Event "Israeli Team-ch 2023"]
[Site "Petah Tikva"]
[Date "2023.01.20"]
[Round "3.27"]
[White "Mesropov, Konstantin"]
[Black "Bronstein, Or"]
[Result "1/2-1/2"]
[ECO "B96"]
[WhiteElo "2437"]
[BlackElo "2447"]
[Annotator "TA"]
[PlyCount "41"]
[EventDate "2023.01.13"]
[EventCountry "ISR"]
[SourceTitle "playchess.com"]
[Source "ChessBase"]
[SourceQuality "1"]
[TimeControl "40/5400+30:1800+30"]

{[%evp 17,41,34,43,40,28,34,32,0,-6,0,0,-9,-16,-8,-22,0,0,0,0,0,0,0,0,0,0,0]} 1. e4 {[%emt 0:12:11]} c5 {[%emt 0:00:53]} 2. Nf3 {[%emt 0:00:16]} d6 {[%emt 0:00:20]} 3. d4 {[%emt 0:01:26]} cxd4 {[%emt 0:00:23]} 4. Nxd4 {[%emt 0:00:03]} Nf6 {[%emt 0:00:08]} 5. Nc3 {[%emt 0:00:09]} a6 {[%emt 0:00:12]} 6. Bg5 {[%emt 0:02:23]} Nbd7 {[%emt 0:05:52]} 7. Qe2 {[%emt 0:01:00]} e6 {[%emt 0:08:44]} 8. f4 {[%emt 0:01:19]} Qc7 {[%emt 0:00:42]} 9. O-O-O {[%emt 0:04:36]} b5 {[%emt 0:02:48]} 10. a3 {[%emt 0:05:02] B96: Sicilian Najdorf: 6 Bg5 e6 7 f4, lines other than 7...Qb6 and 7...Be7.} Be7 $1 {[%emt 0:00:21][%mdl 4] outshines the older 10...Bb7.} 11. g4 {[%emt 0:01:41]} h6 {[%emt 0:02:41]} 12. Bxf6 {[%emt 0:16:01] White is slightly better.} (12. Bh4 $5 {[%cal Rf1g2]}) 12... Bxf6 {[%emt 0:06:05] The position is equal.} 13. Ndxb5 {[%emt 0:07:28]} axb5 {[%emt 0:01:00]} 14. Nxb5 {[%emt 0:00:07]} Qc5 {[%emt 0:03:43] aiming for ...Ba6.} 15. Nxd6+ {[%emt 0:00:37]} Kf8 {[%emt 0:00:58][%cal Of6b2] ( -> ...Bxb2+!)} 16. e5 {[%emt 0:00:52] [#]} Rxa3 $146 {[%emt 0:10:40][%mdl 64] [#] Demolition} ({Predecessor:} 16... Be7 17. h4 Nb6 18. Rh3 Ba6 19. Qe4 Bxf1 20. Rc3 Qa5 21. Rxf1 Bxd6 22. exd6 Qa6 {½-½ Herriot,B (2223)-Sherwood,R (2326) WLS-Yorkshire email 2016 [1]}) 17. bxa3 {[%emt 0:08:02]} Qxa3+ {[%emt 0:00:16]} 18. Kb1 {[%emt 0:09:31]} Qb4+ {[%emt 0:00:29]} 19. Ka2 {[%emt 0:01:11]} Qa4+ {[%emt 0:00:06]} 20. Kb1 {[%emt 0:02:47]} Qb4+ {[%emt 0:00:17]} 21. Ka2 {[%emt 0:01:18] Weighted Error Value: White=0.04 (flawless) /Black=0.00 (flawless)} 1/2-1/2

[Event "Israeli Team-ch 2023"]
[Site "Petah Tikva"]
[Date "2023.01.20"]
[Round "3.28"]
[White "Veinberg, Nimrod"]
[Black "Ben Ari, Yannay"]
[Result "1-0"]
[ECO "E51"]
[WhiteElo "2400"]
[BlackElo "2406"]
[Annotator "TA"]
[PlyCount "171"]
[EventDate "2023.01.13"]
[EventCountry "ISR"]
[SourceTitle "playchess.com"]
[Source "ChessBase"]
[SourceQuality "1"]
[TimeControl "40/5400+30:1800+30"]

{[%evp 12,171,4,0,8,-7,1,0,38,35,35,27,40,27,25,17,36,0,8,7,25,25,51,48,48,47,39,45,84,85,110,94,115,98,106,115,122,114,121,114,127,27,93,0,31,18,71,67,186,195,193,171,180,185,179,189,185,167,162,154,160,159,175,150,347,341,330,174,174,175,168,173,172,163,200,135,128,136,166,136,135,126,110,114,119,129,120,19,142,132,272,221,306,210,190,90,122,120,141,77,77,52,579,553,1083,463,645,497,633,629,733,733,718,732,725,712,740,739,729,684,722,690,723,713,1053,937,1134,973,5164,5041,5293,5272,5231,5167,29962,29969,29981,4455,29982,4149,4149,4145,4145,4141,4137,4137,29983,29983,29981,29981,29986,29984,29985,29985,29985,29986,29986,29987,29988,29989,29992,29993]} 1. d4 {[%emt 0:00:34]} Nf6 {[%emt 0:00:41]} 2. c4 {[%emt 0:00:31]} e6 {[%emt 0:00:11]} 3. Nc3 {[%emt 0:00:10]} Bb4 {[%emt 0:00:11]} 4. Bd2 {[%emt 0:01:35]} O-O {[%emt 0:06:12]} 5. Nf3 {[%emt 0:00:20]} d5 {[%emt 0:01:02]} 6. e3 {[%emt 0:00:06]} Nbd7 {[%emt 0:00:17]} 7. a3 {[%emt 0:02:11]} Be7 {[%emt 0:13:51] is more profitable than 7...Bxc3 at the moment. E51: Nimzo-Indian: Rubinstein: 4...0-0 5 Nf3 d5.} 8. b4 {[%emt 0:05:02] [#]} a5 $146 {[%emt 0:02:44]} ({Predecessor:} 8... dxc4 9. Bxc4 b6 10. O-O Bb7 11. Qe2 c5 12. b5 Rc8 13. Bb3 Qc7 14. Rfc1 e5 15. dxc5 Nxc5 {½-½ Hasinski,K (1714)-Pijewski,M (1496) Lazy Baltic Pearl op-A 18th 2022 (6)}) 9. b5 {[%emt 0:02:42]} b6 {[%emt 0:13:00] The position is equal.} 10. cxd5 {[%emt 0:09:29]} exd5 {[%emt 0:03:22]} 11. Be2 {[%emt 0:04:12]} Bd6 {[%emt 0:01:09]} 12. O-O {[%emt 0:00:57]} Bb7 {[%emt 0:00:12]} 13. Qb3 {[%emt 0:00:54]} Re8 {[%emt 0:15:40]} 14. g3 {[%emt 0:16:59]} Qe7 {[%emt 0:01:01]} 15. a4 {[%emt 0:00:50]} Rad8 {[%emt 0:01:02]} 16. Bc1 {[%emt 0:00:15]} Nf8 {[%emt 0:06:42]} 17. Ba3 {[%emt 0:01:33]} Ng6 {[%emt 0:00:03]} 18. Bxd6 {[%emt 0:01:16]} Rxd6 {[%emt 0:01:44]} 19. Rfc1 {[%emt 0:05:35]} Ng4 {[%emt 0:10:10]} 20. Nd1 {[%emt 0:00:28]} h5 {[%emt 0:01:37]} 21. Ra2 {[%emt 0:00:44]} Rd7 {[%emt 0:04:42]} 22. Rac2 {[%emt 0:00:46]} Qd6 {[%emt 0:01:51]} 23. Ng5 {[%emt 0:05:34]} Rde7 {[%emt 0:03:20]} 24. Rc3 {[%emt 0:01:52]} Nf8 {[%emt 0:03:08]} 25. Qc2 {[%emt 0:14:28]} Qf6 {[%emt 0:00:25]} 26. Nh3 {[%emt 0:02:30]} (26. h4 $16) 26... Ne6 {[%emt 0:01:19]} (26... g5 $1 $11) 27. Bf1 {[%emt 0:05:24]} (27. Nf4 $16) 27... g6 {[%emt 0:01:46]} 28. Nb2 {[%emt 0:00:24][%cal Bd1b2,Bb2d3,Bd3f4][%mdl 32]} Kg7 {[%emt 0:01:49]} (28... g5 $11) 29. Nd3 $16 {[%emt 0:00:02]} h4 {[%emt 0:00:51]} (29... g5 $1 $14) 30. Qd1 {[%emt 0:00:40]} Nh6 {[%emt 0:02:07]} 31. Nhf4 {[%emt 0:02:35]} hxg3 {[%emt 0:00:40]} 32. hxg3 {[%emt 0:00:12]} Nxf4 {[%emt 0:01:49]} 33. Nxf4 {[%emt 0:00:01]} (33. exf4 Qxd4 34. Rxc7 Nf5 35. Rxe7 Rxe7 $11) 33... Qd6 {[%emt 0:00:00]} 34. Bg2 {[%emt 0:01:33]} Ng8 {[%emt 0:00:01]} 35. Qc2 {[%emt 0:01:27]} Nf6 {[%emt 0:02:41]} 36. Rxc7 {[%emt 0:00:23] White is more active.} Qa3 {[%emt 0:00:34]} 37. Bh3 {[%emt 0:08:54][%cal Bg2h3,Bh3d7,Bd7c6][%mdl 32]} Ne4 $2 {[%emt 0:00:10]} (37... Rxc7 $16 38. Qxc7 Re7) 38. Bd7 $18 {[%emt 0:01:33][%cal Od7e8]} Rb8 {[%emt 0:00:01] [#]} 39. Rxb7 {[%emt 0:02:41]} Rxb7 {[%emt 0:00:13]} 40. Bc6 {[%emt 0:00:05]} Rb8 {[%emt 0:01:37][%cal Oe4g3]} 41. Nxd5 {[%emt 0:30:03]} (41. Bxd5 Rh8 $16) 41... Re6 {[%emt 0:09:01]} 42. Nf4 {[%emt 0:00:00]} Re7 {[%emt 0:00:02][%cal Oe4g3]} 43. Kg2 {[%emt 0:00:00]} Nxf2 {[%emt 0:07:26]} 44. Kxf2 {[%emt 0:00:00]} Qxe3+ {[%emt 0:00:07]} 45. Kg2 {[%emt 0:00:00]} Qxd4 {[%emt 0:00:09]} 46. Qc3 $36 {[%emt 0:00:00][%mdl 2048] Black is under strong pressure.} Rd8 {[%emt 0:05:54]} 47. Qxd4+ {[%emt 0:00:00][%mdl 64] Remove Defender} Rxd4 {[%emt 0:00:01]} 48. Nd5 {[%emt 0:00:00]} Re2+ {[%emt 0:01:02]} 49. Kf3 {[%emt 0:00:00]} (49. Kf1 $16 Ra2 50. Nxb6) 49... Rdd2 {[%emt 0:02:41]} (49... Red2 $1 $11 {remains equal.}) 50. Rf1 {[%emt 0:00:00]} ({Of course not} 50. Nxb6 $6 Rf2+ 51. Kg4 Rd4+ 52. Kh3 Rd8 $11) 50... Rh2 {[%emt 0:05:30]} (50... Re6 $16) 51. Nxb6 {[%emt 0:00:00]} Rd3+ {[%emt 0:00:14]} 52. Kf4 {[%emt 0:00:00]} Re2 {[%emt 0:02:55]} 53. Nd7 {[%emt 0:00:00]} (53. g4 $18) 53... Rd4+ {[%emt 0:01:11] [#]} 54. Kf3 $1 {[%emt 0:00:00]} Rc2 {[%emt 0:00:31]} 55. Rb1 {[%emt 0:00:00]} (55. Rf2 $142 Rc3+ 56. Kg2) 55... Rxa4 $16 {[%emt 0:00:49]} 56. b6 {[%emt 0:00:21]} (56. Rb3 $5 {[%cal Rb5b6]} Rac4 57. Bd5 $16) 56... Rc3+ $2 {[%emt 0:00:03][%mdl 8192] Black is on the road to losing.} (56... Rxc6 $2 57. b7 Rd4 58. b8=Q $18 (58. b8=R $2 {is the wrong capture.} Rc3+ 59. Ke2 Rxd7 $19)) ({Black should try} 56... Ra3+ $1 $14 57. Ke4 Rxc6) 57. Kg2 $18 {[%emt 0:00:24]} Raa3 {[%emt 0:00:46] [#]} 58. Nc5 {[%emt 0:02:37]} Rxg3+ {[%emt 0:00:22]} (58... Rxc5 $2 59. b7 Rxc6 60. b8=Q (60. b8=B $2 {too greedy.} a4 $19) 60... Rc2+ 61. Kg1 $18) 59. Kf2 {[%emt 0:00:48] Hoping for b7.} Rh3 {[%emt 0:00:17]} 60. b7 {[%emt 0:01:00]} Ra2+ {[%emt 0:00:46]} 61. Kf1 {[%emt 0:00:23]} Rh8 {[%emt 0:00:16]} 62. b8=Q {[%emt 0:00:10]} Rxb8 {[%emt 0:00:01]} 63. Rxb8 {[%emt 0:00:01]} Rc2 {[%emt 0:00:39]} 64. Rb5 {[%emt 0:00:03]} a4 {[%emt 0:00:39]} 65. Be4 {[%emt 0:00:11]} Rc1+ {[%emt 0:00:33]} 66. Ke2 {[%emt 0:00:05]} a3 {[%emt 0:00:19]} 67. Ra5 {[%emt 0:00:21]} a2 {[%emt 0:00:25]} 68. Nb3 {[%emt 0:00:07]} Rc3 {[%emt 0:01:15]} 69. Nd2 {[%emt 0:00:23]} f5 {[%emt 0:00:39]} 70. Bd3 {[%emt 0:00:08]} Kf6 {[%emt 0:00:27]} 71. Rxa2 {[%emt 0:00:06]} Rc8 {[%emt 0:00:33]} 72. Ra6+ {[%emt 0:00:07]} Kg5 {[%emt 0:00:07]} 73. Nf3+ {[%emt 0:00:12]} Kf4 {[%emt 0:00:33]} 74. Rxg6 {[%emt 0:03:18]} (74. Kf2 $142 Re8 75. Ra4+ Re4 76. Bxe4 fxe4 77. Rd4 g5 78. Nd2 Ke5 79. Ke3) 74... Rg8 {[%emt 0:00:50]} 75. Rf6 {[%emt 0:00:43]} (75. Bxf5 $142 Rxg6 76. Bxg6 Kg3 77. Ke3 Kg4 78. Ke4 Kg3 79. Bh5 Kf2 80. Ne5) 75... Rg2+ {[%emt 0:00:13]} 76. Kf1 {[%emt 0:00:05]} Ra2 {[%emt 0:00:45]} 77. Rxf5+ {[%emt 0:00:09]} Ke3 {[%emt 0:00:10]} 78. Ne1 {[%emt 0:00:27]} Ra4 {[%emt 0:00:44]} 79. Rf3+ {[%emt 0:00:09] White mates.} Kd2 {[%emt 0:00:03]} 80. Bf5 {[%emt 0:00:31]} Rh4 {[%emt 0:00:49]} 81. Rd3+ {[%emt 0:00:12]} Kc1 {[%emt 0:00:03]} 82. Nf3 {[%emt 0:00:53]} Rf4 {[%emt 0:00:23]} 83. Bh7 {[%emt 0:00:21]} Rf7 {[%emt 0:00:15]} 84. Be4 {[%emt 0:00:07]} Rf4 {[%emt 0:00:11]} 85. Re3 {[%emt 0:00:10]} Rf8 {[%emt 0:00:17]} 86. Rb3 {[%emt 0:00:38] Weighted Error Value: White=0.36/Black=0.41} 1-0